fUST/lending_fUST_20240630
["ID","MTS","AMOUNT","RATE_DAILY","PERIOD"]
[330678645,1719705038893,-500.0,0.00016495,2]
[330678647,1719705038903,-500.0,0.00016495,2]
[330678649,1719705038912,-500.0,0.00016495,2]
[330678651,1719705038921,-608.39,0.00016495,2]
[330678653,1719705038931,-684.43,0.00016495,2]
[330678655,1719705038940,-1383.24,0.00016495,2]
[330678657,1719705038950,-2000.0,0.00016496,2]
[330678659,1719705038959,-500.0,0.00016496,2]
[330678661,1719705038969,-500.0,0.00016496,2]
[330678663,1719705038979,-500.0,0.00016496,2]
[330678665,1719705038988,-3164.72,0.00016496,2]
[330678667,1719705038998,-500.0,0.00016496,2]
[330678669,1719705039008,-770.54,0.00016496,2]
[330678671,1719705039018,-952.53,0.00016496,2]
[330678673,1719705039028,-617.02,0.00016496,2]
[330678675,1719705039038,-500.0,0.00016496,2]
[330678677,1719705039048,-3702.5,0.00016496,2]
[330678679,1719705039063,-500.0,0.00016496,2]
[330678681,1719705039073,-462.32005478,0.00016496,2]
[330678683,1719705039083,-534.07773022,0.00016496,2]
[330678685,1719705039094,-588.03465037,0.00016496,2]
[330678687,1719705039104,-738.26,0.00016496,2]
[330678689,1719705039115,-500.0,0.00016496,2]
[330678692,1719705039125,-619.06,0.00016496,2]
[330678694,1719705039135,-691.42,0.00016496,2]
[330678695,1719705039146,-3209.54,0.00016496,2]
[330678697,1719705039156,-3894.49,0.00016496,2]
[330678699,1719705039166,-273.32162773,0.00016496,2]
[330678701,1719705039176,-2112.87,0.00016496,2]
[330678704,1719705039188,-46173.63,0.00016496,2]
[330678706,1719705039199,-8403.16,0.00016496,2]
[330678707,1719705039209,-4294.01,0.00016496,2]
[330678709,1719705039221,-5663.13,0.00016496,2]
[330678711,1719705039232,-731.59,0.00016496,2]
[330678713,1719705039242,-9472.14,0.00016496,2]
[330678715,1719705039253,-837.66,0.00016496,2]
[330678717,1719705039263,-3178.0,0.00016496,2]
[330678719,1719705039274,-976.43,0.00016496,2]
[330678721,1719705039284,-11600.69,0.00016496,2]
[330678723,1719705039294,-500.0,0.00016496,2]
[330678725,1719705039304,-1214.96,0.00016496,2]
[330678727,1719705039315,-1932.96,0.00016496,2]
[330678729,1719705039325,-500.0,0.00016496,2]
[330678731,1719705039335,-3161.44,0.00016496,2]
[330678733,1719705039345,-52.02919828,0.00016496,2]
[330678842,1719705040403,-447.97080172,0.00016496,2]
[330678844,1719705040413,-1006.29,0.00016496,2]
[330678845,1719705040422,-504.55555756,0.00016496,2]
[330678848,1719705040433,-501.89133462,0.00016496,2]
[330678850,1719705040443,-1341.45,0.00016496,2]
[330678852,1719705040452,-500.0,0.00016496,2]
[330678853,1719705040462,-500.0,0.00016496,2]
[330678856,1719705040475,-500.0,0.00016496,2]
[330678858,1719705040485,-500.0,0.00016496,2]
[330678860,1719705040496,-500.0,0.00016496,2]
[330678861,1719705040505,-750.1,0.00016496,2]
[330678864,1719705040515,-1494.81,0.00016496,2]
[330678865,1719705040525,-1002.24,0.00016496,2]
[330678867,1719705040534,-1914.27,0.00016496,2]
[330678869,1719705040544,-570.07,0.00016496,2]
[330678871,1719705040553,-1247.13,0.00016496,2]
[330678873,1719705040563,-877.18,0.00016496,2]
[330678875,1719705040573,-15167.98,0.00016496,2]
[330678877,1719705040582,-594.4,0.00016496,2]
[330678879,1719705040592,-684.54379293,0.00016496,2]
[330678882,1719705040605,-412.53620707,0.00016496,2]
[330678884,1719705040614,-294.53949279,0.00016496,2]
[330679852,1719705225262,8673.71837136,0.00014998,2]
[330679853,1719705238467,6971.98727304,0.00014998,2]
[330679854,1719705243429,7459.08204415,0.00014998,2]
[330679856,1719705392103,11118.98907716,0.00014998,2]
[330679857,1719705413151,273.37336231,9.9e-05,2]
[330679858,1719705428280,235.60219224,9.9e-05,2]
[330679860,1719705475608,155.212627,0.00012,2]
[330679861,1719705517813,155.80568734,0.00014545,2]
[330679866,1719705710828,154.86835263,0.00014999,2]
[330679867,1719705711121,203.1886667,0.00014999,2]
[330679868,1719705718204,155.37362925,0.00014999,2]
[330679871,1719705862784,402.69286276,0.00014999,2]
[330679873,1719705925110,154.85288975,0.00014999,2]
[330679874,1719705934229,154.85288975,0.00014999,2]
[330679875,1719705969898,195.45518522,0.00014999,2]
[330679879,1719706106084,1229.49621454,0.00014999,2]
[330679881,1719706128323,176.36471169,0.00014999,2]
[330680050,1719706238452,-233.8563631,0.00015304,2]
[330680052,1719706238462,-223.797191,0.00015401,2]
[330680054,1719706238471,-3335.14644589,0.00015458,2]
[330680057,1719706238484,-12054.55617061,0.00015458,2]
[330680059,1719706238493,-5285.14289515,0.00016213,2]
[330680061,1719706238503,-20804.51071191,0.00016255,2]
[330680063,1719706238512,-2842.74679974,0.00016394,2]
[330680065,1719706238521,-2842.74679974,0.00016394,2]
[330680066,1719706238530,-2842.74679974,0.00016395,2]
[330680068,1719706238540,-2842.74679974,0.00016395,2]
[330680070,1719706238549,-2842.74679974,0.00016395,2]
[330680072,1719706238559,-1668.83180154,0.00016395,2]
[330680075,1719706238568,-7354.38,0.00016492,2]
[330680077,1719706238579,-500.0,0.00016492,2]
[330680079,1719706238588,-2160.58,0.00016492,2]
[330680080,1719706238597,-5716.37,0.00016492,2]
[330680083,1719706238607,-611.84,0.00016492,2]
[330680084,1719706238617,-571.87425592,0.00016493,2]
[330680086,1719706238627,-46389.15,0.00016493,2]
[330680088,1719706238636,-5684.09,0.00016493,2]
[330680090,1719706238646,-9507.2,0.00016493,2]
[330680093,1719706238656,-3645.27,0.00016493,2]
[330680094,1719706238665,-500.0,0.00016493,2]
[330680096,1719706238675,-500.0,0.00016493,2]
[330680098,1719706238686,-500.0,0.00016493,2]
[330680100,1719706238698,-500.0,0.00016493,2]
[330680102,1719706238707,-1500.34,0.00016493,2]
[330680105,1719706238717,-572.18,0.00016493,2]
[330680107,1719706238728,-9534.95,0.00016493,2]
[330680108,1719706238739,-73078.08844014,0.00016494,7]
[330680110,1719706238749,-1914.10700208,0.00016494,7]
[330680113,1719706238759,-500.0,0.00016494,2]
[330680114,1719706238770,-500.0,0.00016494,2]
[330680116,1719706238779,-500.59,0.00016494,2]
[330680118,1719706238788,-500.0,0.00016494,2]
[330680121,1719706238797,-503.32845027,0.00016494,2]
[330680122,1719706238807,-501.9338835,0.00016494,2]
[330680124,1719706238816,-686.96,0.00016494,2]
[330680126,1719706238826,-500.0,0.00016494,2]
[330680128,1719706238836,-693.31,0.00016494,2]
[330680130,1719706238845,-500.0,0.00016494,2]
[330680132,1719706238854,-500.0,0.00016494,2]
[330680134,1719706238864,-500.0,0.00016494,2]
[330680136,1719706238874,-500.0,0.00016494,2]
[330680138,1719706238883,-500.0,0.00016494,2]
[330680140,1719706238893,-500.0,0.00016494,2]
[330680142,1719706238903,-500.0,0.00016494,2]
[330680144,1719706238912,-500.0,0.00016494,2]
[330680146,1719706238922,-500.0,0.00016494,2]
[330680148,1719706238931,-500.0,0.00016494,2]
[330680150,1719706238940,-519.75471503,0.00016494,2]
[330680152,1719706238950,-182.04441726,0.00016494,2]
[330680154,1719706238959,-3176.43,0.00016494,2]
[330680156,1719706238969,-915.62,0.00016494,2]
[330680158,1719706238978,-500.0,0.00016494,2]
[330680160,1719706238988,-500.0,0.00016494,2]
[330680162,1719706238997,-258.26323226,0.00016494,2]
[330680164,1719706239008,-956.06,0.00016494,2]
[330680166,1719706239018,-500.0,0.00016494,2]
[330680168,1719706239028,-500.0,0.00016494,2]
[330680170,1719706239037,-500.0,0.00016494,2]
[330680172,1719706239047,-500.0,0.00016494,2]
[330680174,1719706239058,-500.0,0.00016494,2]
[330680176,1719706239068,-500.0,0.00016494,2]
[330680178,1719706239080,-500.0,0.00016494,2]
[330680180,1719706239091,-500.0,0.00016494,2]
[330680182,1719706239103,-500.0,0.00016494,2]
[330680184,1719706239113,-500.0,0.00016494,2]
[330680186,1719706239123,-500.0,0.00016494,2]
[330680188,1719706239135,-500.0,0.00016494,2]
[330680190,1719706239147,-773.39,0.00016494,2]
[330680192,1719706239158,-619.31,0.00016494,2]
[330680194,1719706239168,-500.0,0.00016494,2]
[330680196,1719706239178,-500.0,0.00016494,2]
[330680198,1719706239188,-500.0,0.00016494,2]
[330680200,1719706239198,-846.4,0.00016494,2]
[330680202,1719706239208,-408.71040211,0.00016494,2]
[330680204,1719706239218,-500.0,0.00016494,2]
[330680217,1719706239337,-3716.21,0.00016494,2]
[330680219,1719706239354,-608.11,0.00016494,2]
[330680221,1719706239364,-724.24,0.00016494,2]
[330680223,1719706239375,-500.0,0.00016494,2]
[330680225,1719706239384,-500.0,0.00016494,2]
[330680227,1719706239394,-500.0,0.00016494,2]
[330680229,1719706239404,-500.0,0.00016494,2]
[330680231,1719706239413,-500.0,0.00016494,2]
[330680233,1719706239423,-741.0,0.00016494,2]
[330680235,1719706239433,-500.0,0.00016494,2]
[330680237,1719706239442,-500.0,0.00016494,2]
[330680239,1719706239453,-500.0,0.00016494,2]
[330680241,1719706239463,-500.0,0.00016494,2]
[330680243,1719706239473,-500.0,0.00016494,2]
[330680245,1719706239483,-500.0,0.00016494,2]
[330680247,1719706239493,-500.0,0.00016494,2]
[330680249,1719706239503,-1313.73,0.00016494,2]
[330680250,1719706239513,-500.0,0.00016494,2]
[330680251,1719706239523,-302.22589046,0.00016494,2]
[330680252,1719706239532,-504.39391531,0.00016494,2]
[330680253,1719706239541,-500.0,0.00016494,2]
[330680254,1719706239551,-500.0,0.00016494,2]
[330680255,1719706239560,-500.0,0.00016494,2]
[330680256,1719706239570,-500.0,0.00016494,2]
[330680258,1719706239583,-500.0,0.00016494,2]
[330680260,1719706239594,-500.0,0.00016494,2]
[330680262,1719706239605,-500.0,0.00016494,2]
[330680264,1719706239615,-500.0,0.00016494,2]
[330680266,1719706239625,-500.0,0.00016494,2]
[330680267,1719706239634,-500.0,0.00016494,2]
[330680269,1719706239643,-180.45,0.00016494,2]
[330680271,1719706239653,-500.0,0.00016494,2]
[330680273,1719706239663,-500.0,0.00016494,2]
[330680276,1719706239672,-621.35,0.00016494,2]
[330680278,1719706239686,-640.76055392,0.00016494,2]
[330680280,1719706239698,-500.0,0.00016494,2]
[330680282,1719706239708,-522.46275303,0.00016494,2]
[330680283,1719706239718,-693.98,0.00016494,2]
[330680285,1719706239729,-500.0,0.00016494,2]
[330680287,1719706239740,-517.76991674,0.00016494,2]
[330680289,1719706239749,-500.0,0.00016494,2]
[330680292,1719706239759,-3221.42,0.00016494,2]
[330680294,1719706239770,-500.0,0.00016494,2]
[330680296,1719706239779,-3908.91,0.00016494,2]
[330680297,1719706239789,-500.0,0.00016494,2]
[330680299,1719706239798,-524.4488104,0.00016494,2]
[330680301,1719706239807,-545.95292562,0.00016494,2]
[330680303,1719706239817,-1391.21,0.00016494,2]
[330680305,1719706239829,-591.04,0.00016494,2]
[330680307,1719706239839,-500.0,0.00016494,2]
[330680309,1719706239848,-500.0,0.00016494,2]
[330680311,1719706239858,-500.0,0.00016494,2]
[330680313,1719706239867,-500.0,0.00016494,2]
[330680315,1719706239877,-500.0,0.00016494,2]
[330680317,1719706239886,-500.0,0.00016494,2]
[330680319,1719706239896,-787.84,0.00016494,2]
[330680321,1719706239906,-545.02406216,0.00016494,2]
[330680323,1719706239916,-500.0,0.00016494,2]
[330680326,1719706239926,-8434.27,0.00016494,2]
[330680329,1719706239936,-500.0,0.00016494,2]
[330680332,1719706239946,-842.41,0.00016494,2]
[330680335,1719706239955,-4317.99,0.00016494,2]
[330680337,1719706239965,-871.44,0.00016494,2]
[330680339,1719706239974,-506.16242033,0.00016494,2]
[330680341,1719706239984,-500.0,0.00016494,2]
[330680343,1719706239993,-735.81,0.00016494,2]
[330680345,1719706240004,-500.0,0.00016494,2]
[330680347,1719706240013,-501.66243871,0.00016494,2]
[330680349,1719706240023,-500.0,0.00016494,2]
[330680351,1719706240033,-500.0,0.00016494,2]
[330680353,1719706240043,-3202.87,0.00016494,2]
[330680355,1719706240052,-500.0,0.00016494,2]
[330680357,1719706240062,-498.62426849,0.00016494,2]
[330680359,1719706240073,-507.33651066,0.00016494,2]
[330680361,1719706240083,-500.0,0.00016494,2]
[330680364,1719706240092,-507.40533053,0.00016494,2]
[330680367,1719706240102,-706.92,0.00016494,2]
[330680370,1719706240112,-500.0,0.00016494,2]
[330680373,1719706240121,-500.0,0.00016494,2]
[330680376,1719706240131,-1063.56,0.00016494,2]
[330680378,1719706240140,-785.05,0.00016494,2]
[330680380,1719706240152,-500.0,0.00016494,2]
[330680382,1719706240161,-984.07,0.00016494,2]
[330680384,1719706240171,-500.0,0.00016494,2]
[330680386,1719706240180,-11691.48,0.00016494,2]
[330680388,1719706240189,-614.30249063,0.00016494,2]
[330680390,1719706240198,-504.08985848,0.00016494,2]
[330680392,1719706240207,-500.0,0.00016494,2]
[330680394,1719706240216,-312.49740501,0.00016494,2]
[330680396,1719706240226,-500.0,0.00016494,2]
[330680398,1719706240236,-500.0,0.00016494,2]
[330680400,1719706240245,-500.0,0.00016494,2]
[330680402,1719706240254,-1733.77,0.00016494,2]
[330680404,1719706240263,-502.89687144,0.00016494,2]
[330680406,1719706240273,-1224.47,0.00016494,2]
[330680408,1719706240283,-500.0,0.00016494,2]
[330680410,1719706240292,-500.0,0.00016494,2]
[330680412,1719706240301,-644.68,0.00016494,2]
[330680414,1719706240311,-1948.09,0.00016494,2]
[330680416,1719706240320,-831.61,0.00016494,2]
[330680418,1719706240330,-500.0,0.00016494,2]
[330680420,1719706240340,-500.0,0.00016494,2]
[330680422,1719706240349,-1004.06,0.00016494,2]
[330680424,1719706240358,-500.0,0.00016494,2]
[330680426,1719706240368,-1014.16,0.00016494,2]
[330680428,1719706240377,-352.01106044,0.00016494,2]
[330680430,1719706240387,-500.0,0.00016494,2]
[330680432,1719706240396,-500.0,0.00016494,2]
[330680434,1719706240405,-500.0,0.00016494,2]
[330680436,1719706240415,-500.0,0.00016494,2]
[330680438,1719706240424,-500.0,0.00016494,2]
[330680440,1719706240433,-1254.32,0.00016494,2]
[330680442,1719706240442,-1351.94,0.00016494,2]
[330680444,1719706240453,-500.0,0.00016494,2]
[330680446,1719706240462,-640.66,0.00016494,2]
[330680447,1719706240472,-500.0,0.00016494,2]
[330680449,1719706240481,-500.0,0.00016494,2]
[330680451,1719706240491,-286.46347606,0.00016494,2]
[330680453,1719706240500,-1051.37,0.00016494,2]
[330680455,1719706240510,-558.08,0.00016494,2]
[330680457,1719706240519,-500.0,0.00016494,2]
[330680460,1719706240530,-500.0,0.00016494,2]
[330680462,1719706240540,-906.58,0.00016494,2]
[330680464,1719706240550,-1898.02,0.00016494,2]
[330680466,1719706240560,-500.0,0.00016494,2]
[330680468,1719706240570,-884.05,0.00016494,2]
[330680470,1719706240581,-500.0,0.00016494,2]
[330680472,1719706240591,-500.0,0.00016494,2]
[330680474,1719706240601,-500.0,0.00016494,2]
[330680475,1719706240610,-500.0,0.00016494,2]
[330680478,1719706240620,-1113.95,0.00016494,2]
[330680480,1719706240630,-500.0,0.00016494,2]
[330680482,1719706240640,-500.0,0.00016494,2]
[330680484,1719706240649,-599.05,0.00016494,2]
[330680486,1719706240659,-647.24,0.00016494,2]
[330680488,1719706240669,-1139.93,0.00016494,2]
[330680490,1719706240678,-1796.98,0.00016494,2]
[330680491,1719706240691,-500.0,0.00016494,2]
[330680493,1719706240700,-500.0,0.00016494,2]
[330680496,1719706240710,-3773.21,0.00016494,2]
[330680498,1719706240720,-500.0,0.00016494,2]
[330680500,1719706240730,-500.0,0.00016494,2]
[330680502,1719706240740,-18165.87,0.00016494,2]
[330680504,1719706240749,-500.0,0.00016494,2]
[330680506,1719706240759,-547.22061459,0.00016494,2]
[330680508,1719706240769,-500.0,0.00016494,2]
[330680510,1719706240778,-500.0,0.00016494,2]
[330680512,1719706240788,-501.90636135,0.00016494,2]
[330680514,1719706240797,-2024.83,0.00016495,2]
[330680516,1719706240806,-500.0,0.00016495,2]
[330680517,1719706240815,-501.1586156,0.00016495,2]
[330680520,1719706240826,-504.18292755,0.00016495,2]
[330680522,1719706240835,-500.0,0.00016495,2]
[330680523,1719706240844,-500.0,0.00016495,2]
[330680526,1719706240854,-500.0,0.00016495,2]
[330680527,1719706240866,-682.6,0.00016495,2]
[330680530,1719706240875,-500.0,0.00016495,2]
[330680532,1719706240885,-500.0,0.00016495,2]
[330680534,1719706240894,-500.0,0.00016495,2]
[330680536,1719706240903,-500.0,0.00016495,2]
[330680538,1719706240912,-504.28075772,0.00016495,2]
[330680540,1719706240922,-500.0,0.00016495,2]
[330680542,1719706240931,-500.0,0.00016495,2]
[330680544,1719706240941,-500.0,0.00016495,2]
[330680546,1719706240950,-534.98,0.00016495,2]
[330680548,1719706240959,-500.0,0.00016495,2]
[330680550,1719706240969,-500.0,0.00016495,2]
[330680552,1719706240978,-500.0,0.00016495,2]
[330680554,1719706240987,-500.0,0.00016495,2]
[330680556,1719706240997,-500.0,0.00016495,2]
[330680558,1719706241006,-500.0,0.00016495,2]
[330680560,1719706241016,-536.30899488,0.00016495,2]
[330680562,1719706241025,-500.0,0.00016495,2]
[330680564,1719706241035,-584.68,0.00016495,2]
[330680566,1719706241044,-500.0,0.00016495,2]
[330680568,1719706241054,-500.0,0.00016495,2]
[330680570,1719706241063,-505.30489645,0.00016495,2]
[330680581,1719706241161,-500.0,0.00016495,2]
[330680583,1719706241171,-500.0,0.00016495,2]
[330680585,1719706241180,-500.0,0.00016495,2]
[330680587,1719706241190,-792.36,0.00016495,2]
[330680589,1719706241199,-502.65472074,0.00016495,2]
[330680591,1719706241208,-1021.35,0.00016495,2]
[330680593,1719706241217,-778.02,0.00016495,2]
[330680595,1719706241226,-500.0,0.00016495,2]
[330680597,1719706241235,-500.0,0.00016495,2]
[330680599,1719706241245,-500.0,0.00016495,2]
[330680601,1719706241254,-500.0,0.00016495,2]
[330680603,1719706241263,-501.59453709,0.00016495,2]
[330680605,1719706241272,-500.0,0.00016495,2]
[330680607,1719706241281,-579.64,0.00016495,2]
[330680609,1719706241290,-500.0,0.00016495,2]
[330680611,1719706241299,-754.29,0.00016495,2]
[330680613,1719706241308,-500.0,0.00016495,2]
[330680615,1719706241318,-506.56,0.00016495,2]
[330680617,1719706241327,-500.0,0.00016495,2]
[330680619,1719706241336,-500.0,0.00016495,2]
[330680621,1719706241345,-519.90678711,0.00016495,2]
[330680623,1719706241355,-500.0,0.00016495,2]
[330680625,1719706241364,-15224.13,0.00016495,2]
[330680627,1719706241374,-500.0,0.00016495,2]
[330680629,1719706241383,-600.08,0.00016495,2]
[330680631,1719706241391,-1377.94,0.00016495,2]
[330680633,1719706241401,-500.0,0.00016495,2]
[330680635,1719706241410,-500.0,0.00016495,2]
[330680637,1719706241419,-1170.68,0.00016495,2]
[330680639,1719706241428,-500.0,0.00016495,2]
[330680641,1719706241437,-504.53820613,0.00016495,2]
[330680643,1719706241446,-500.0,0.00016495,2]
[330680645,1719706241455,-500.0,0.00016495,2]
[330680647,1719706241464,-500.0,0.00016495,2]
[330680649,1719706241474,-500.0,0.00016495,2]
[330680651,1719706241483,-500.0,0.00016495,2]
[330680653,1719706241492,-500.0,0.00016495,2]
[330680655,1719706241502,-500.0,0.00016495,2]
[330680657,1719706241511,-523.31886951,0.00016495,2]
[330680659,1719706241520,-872.75,0.00016495,2]
[330680661,1719706241530,-500.0,0.00016495,2]
[330680663,1719706241539,-1211.94,0.00016495,2]
[330680665,1719706241548,-500.0,0.00016495,2]
[330680667,1719706241558,-1655.78,0.00016495,2]
[330680669,1719706241566,-540.38,0.00016495,2]
[330680671,1719706241576,-909.52,0.00016495,2]
[330680673,1719706241585,-500.0,0.00016495,2]
[330680675,1719706241594,-1829.55,0.00016495,2]
[330680677,1719706241603,-2429.47,0.00016495,2]
[330680679,1719706241612,-500.0,0.00016495,2]
[330680681,1719706241622,-500.0,0.00016495,2]
[330680683,1719706241631,-500.0,0.00016495,2]
[330680685,1719706241640,-1048.28,0.00016495,2]
[330680687,1719706241649,-500.0,0.00016495,2]
[330680689,1719706241658,-500.0,0.00016495,2]
[330680691,1719706241667,-500.0,0.00016495,2]
[330680693,1719706241677,-385.10008515,0.00016495,2]
[330680695,1719706241689,-1298.38,0.00016495,2]
[330680697,1719706241699,-500.0,0.00016495,2]
[330680699,1719706241708,-500.0,0.00016495,2]
[330680701,1719706241720,-516.11560987,0.00016495,2]
[330680703,1719706241731,-500.0,0.00016495,2]
[330680705,1719706241740,-562.56024836,0.00016495,2]
[330680707,1719706241750,-500.0,0.00016495,2]
[330680709,1719706241759,-500.0,0.00016495,2]
[330680711,1719706241771,-671.64,0.00016495,2]
[330680713,1719706241780,-500.0,0.00016495,2]
[330680715,1719706241789,-1225.07,0.00016495,2]
[330680717,1719706241798,-500.0,0.00016495,2]
[330680719,1719706241807,-507.86827158,0.00016495,2]
[330680721,1719706241816,-713.41,0.00016495,2]
[330680723,1719706241825,-500.0,0.00016495,2]
[330680725,1719706241835,-500.0,0.00016495,2]
[330680727,1719706241843,-12447.99,0.00016495,2]
[330680729,1719706241853,-2152.41,0.00016495,2]
[330680731,1719706241862,-500.0,0.00016495,2]
[330680733,1719706241871,-300.84990925,0.00016495,2]
[330680735,1719706241881,-573.8,0.00016495,2]
[330680737,1719706241890,-500.0,0.00016495,2]
[330680739,1719706241899,-1381.18,0.00016495,2]
[330680741,1719706241908,-521.51,0.00016495,2]
[330680743,1719706241917,-500.0,0.00016495,2]
[330680745,1719706241926,-287.94090915,0.00016495,2]
[330680747,1719706241935,-3738.88,0.00016495,2]
[330680749,1719706241944,-500.0,0.00016495,2]
[330680751,1719706241954,-500.0,0.00016495,2]
[330680753,1719706241963,-543.19,0.00016495,2]
[330680755,1719706241972,-500.0,0.00016495,2]
[330680757,1719706241982,-2592.02,0.00016495,2]
[330680759,1719706241991,-500.0,0.00016495,2]
[330680761,1719706242000,-502.60619285,0.00016495,2]
[330680763,1719706242010,-500.0,0.00016495,2]
[330680765,1719706242019,-1522.32,0.00016495,2]
[330680767,1719706242028,-500.0,0.00016495,2]
[330680769,1719706242037,-503.40323584,0.00016495,2]
[330680771,1719706242047,-608.63,0.00016495,2]
[330680773,1719706242056,-500.0,0.00016495,2]
[330680775,1719706242065,-1066.98,0.00016495,2]
[330680777,1719706242075,-753.58,0.00016495,2]
[330680779,1719706242084,-500.0,0.00016495,2]
[330680781,1719706242093,-504.47039906,0.00016495,2]
[330680783,1719706242102,-500.0,0.00016495,2]
[330680785,1719706242111,-546.48,0.00016495,2]
[330680787,1719706242120,-766.75,0.00016495,2]
[330680789,1719706242130,-500.0,0.00016495,2]
[330680791,1719706242139,-1024.54,0.00016495,2]
[330680793,1719706242149,-500.0,0.00016495,2]
[330680795,1719706242159,-319.86139206,0.00016495,2]
[330680797,1719706242168,-512.8583965,0.00016495,2]
[330680799,1719706242178,-500.0,0.00016495,2]
[330680801,1719706242186,-509.09,0.00016495,2]
[330680803,1719706242195,-500.0,0.00016495,2]
[330680805,1719706242204,-500.0,0.00016495,2]
[330680807,1719706242213,-500.0,0.00016495,2]
[330680809,1719706242222,-886.43,0.00016495,2]
[330680811,1719706242232,-500.0,0.00016495,2]
[330680813,1719706242240,-500.0,0.00016495,2]
[330680815,1719706242249,-500.0,0.00016495,2]
[330680817,1719706242258,-500.0,0.00016495,2]
[330680819,1719706242267,-500.0,0.00016495,2]
[330680821,1719706242276,-505.58287567,0.00016495,2]
[330680823,1719706242285,-500.0,0.00016495,2]
[330680825,1719706242295,-2729.96,0.00016495,2]
[330680827,1719706242304,-427.4534004,0.00016495,2]
[330680828,1719706242313,-500.0,0.00016495,2]
[330680830,1719706242322,-637.95,0.00016495,2]
[330680833,1719706242333,-500.0,0.00016495,2]
[330680834,1719706242342,-246.64130882,0.00016495,2]
[330680836,1719706242353,-500.0,0.00016495,2]
[330680838,1719706242364,-500.0,0.00016495,2]
[330680840,1719706242373,-500.0,0.00016495,2]
[330680842,1719706242382,-500.0,0.00016495,2]
[330680844,1719706242391,-500.0,0.00016495,2]
[330680846,1719706242400,-500.0,0.00016495,2]
[330680848,1719706242409,-500.0,0.00016495,2]
[330680850,1719706242418,-500.0,0.00016495,2]
[330680853,1719706242427,-500.0,0.00016495,2]
[330680855,1719706242436,-500.0,0.00016495,2]
[330680857,1719706242446,-500.0,0.00016495,2]
[330680859,1719706242455,-500.0,0.00016495,2]
[330680861,1719706242464,-1436.52,0.00016495,2]
[330680863,1719706242474,-500.0,0.00016495,2]
[330680864,1719706242482,-1443.69,0.00016495,2]
[330680866,1719706242491,-500.0,0.00016495,2]
[330680868,1719706242500,-500.0,0.00016495,2]
[330680870,1719706242508,-530.82,0.00016495,2]
[330680872,1719706242517,-231.18514124,0.00016495,2]
[330680874,1719706242526,-500.0,0.00016495,2]
[330680876,1719706242535,-500.0,0.00016495,2]
[330680878,1719706242544,-500.0,0.00016495,2]
[330680880,1719706242553,-500.0,0.00016495,2]
[330680882,1719706242562,-1444.56,0.00016495,2]
[330680885,1719706242571,-703.64,0.00016495,2]
[330680887,1719706242584,-1199.72,0.00016495,2]
[330680889,1719706242593,-500.0,0.00016495,2]
[330680891,1719706242602,-633.21,0.00016495,2]
[330680893,1719706242610,-500.0,0.00016495,2]
[330680895,1719706242619,-500.0,0.00016495,2]
[330680897,1719706242627,-1276.9,0.00016495,2]
[330680899,1719706242636,-500.0,0.00016495,2]
[330680900,1719706242645,-500.0,0.00016495,2]